bitfinex/quotes_SOLUSD_20260119
["timestamp","ask_amount","ask_price","bid_price","bid_amount"]
[1768794238472,11.60167888,133.87,133.84,4.12988025]
[1768794238676,4.01781525,133.86,133.82,11.62975598]
[1768794238856,4.01781525,133.86,133.83,4.15727709]
[1768794239756,4.01781525,133.86,133.84,4.15727709]
[1768794241365,7.02032279,133.85,133.82,4.15727709]
[1768794241775,4.01781525,133.85,133.82,4.15727709]
[1768794242076,3.00250754,133.85,133.82,4.15727709]
[1768794242576,11.48857751,133.86,133.83,4.15727709]
[1768794242872,14.49108505,133.86,133.83,4.15727709]
[1768794243469,4.01781525,133.85,133.82,7.47268281]
[1768794243779,14.49144916,133.85,133.82,4.15727709]
[1768794244080,7.02032279,133.84,133.81,4.35727709]
[1768794245775,14.49144916,133.85,133.81,4.35727709]
[1768794245953,4.01781525,133.84,133.81,4.35727709]
[1768794246155,7.02032279,133.84,133.81,4.35727709]
[1768794247488,4.01781525,133.84,133.81,4.35727709]
[1768794247950,3.95781526,133.84,133.81,4.35727709]
[1768794248149,11.42960846,133.84,133.81,4.35727709]
[1768794248358,7.47117926,133.85,133.81,4.35727709]
[1768794248559,10.4736868,133.85,133.81,4.35727709]
[1768794249963,4.01781525,133.84,133.81,4.35727709]
[1768794253467,4.01781525,133.84,133.81,11.83055424]
[1768794255564,4.01781525,133.84,133.82,4.15727709]
[1768794258083,4.01781525,133.84,133.81,11.83055424]
[1768794258272,4.01781525,133.83,133.81,0.2]
[1768794258867,4.01781525,133.83,133.81,4.35727709]
[1768794259767,14.49231984,133.84,133.81,4.35727709]
[1768794260279,11.4898123,133.84,133.81,4.35727709]
[1768794260478,14.49231984,133.84,133.81,4.35727709]
[1768794263293,4.01781525,133.84,133.81,4.35727709]
[1768794266794,14.41349923,133.85,133.81,4.35727709]
[1768794267099,11.41099169,133.85,133.81,4.35727709]
[1768794267288,10.47375576,133.85,133.82,4.05549237]
[1768794267493,14.41349923,133.85,133.82,4.05549237]
[1768794268101,11.41099169,133.85,133.82,4.05549237]
[1768794268394,3.93974347,133.86,133.83,4.05549237]
[1768794272299,6.94225101,133.86,133.83,4.05549237]
[1768794273183,14.4127566,133.86,133.83,4.05549237]
[1768794273700,14.4127566,133.86,133.82,7.47241023]
[1768794273701,3.93974347,133.84,133.81,11.72855923]
[1768794273907,6.94225101,133.84,133.81,4.25549237]
[1768794276208,3.93974347,133.84,133.81,4.25549237]
[1768794276505,6.94225101,133.84,133.81,4.25549237]
[1768794276806,3.93974347,133.83,133.81,4.25549237]
[1768794279496,3.93974347,133.83,133.81,0.2]
[1768794281399,3.93974347,133.83,133.81,4.35284962]
[1768794281600,3.93974347,133.83,133.81,0.2]
[1768794284096,3.93974347,133.83,133.81,4.35284962]
[1768794285706,4.06364954,133.84,133.81,4.35284962]
[1768794286604,4.06364954,133.84,133.81,11.82605694]
[1768794287809,4.06364954,133.86,133.82,4.15284962]
[1768794288128,4.06364954,133.85,133.82,4.15284962]
[1768794292696,101.68034656,133.89,133.84,3.96268952]
[1768794292907,3.00324427,133.88,133.84,3.96268952]
[1768794293199,3.92161629,133.87,133.84,3.96268952]
[1768794293907,6.92486056,133.87,133.84,3.96268952]
[1768794294820,3.92161629,133.86,133.82,11.43541407]
[1768794295116,3.92161629,133.84,133.81,11.63587998]
[1768794296020,3.92161629,133.84,133.82,3.96268952]
[1768794298111,3.92161629,133.84,133.81,11.63587998]
[1768794299925,3.92161629,133.85,133.82,3.96268952]
[1768794302722,3.92161629,133.84,133.82,3.96268952]
[1768794302915,3.92161629,133.84,133.81,11.63587998]
[1768794306226,3.92161629,133.84,133.81,4.16268952]
[1768794307319,6.92486056,133.82,133.81,0.2]
[1768794307523,6.92486056,133.82,133.79,3.96268952]
[1768794313136,3.92161629,133.85,133.81,3.96268952]
[1768794313520,3.92161629,133.85,133.82,3.96268952]
[1768794317038,6.92486056,133.85,133.82,3.96268952]
[1768794317733,3.92161629,133.85,133.82,3.96268952]
[1768794317932,6.92486056,133.85,133.82,3.96268952]
[1768794318131,3.00324427,133.85,133.82,3.96268952]
[1768794318330,6.92486056,133.85,133.82,3.96268952]
[1768794318934,3.92161629,133.85,133.82,3.96268952]
[1768794321619,6.92486056,133.85,133.82,3.96268952]
[1768794329048,30.67437535,133.86,133.82,3.96268952]
[1768794331450,3.00324427,133.85,133.82,3.96268952]
[1768794332649,30.67437535,133.86,133.82,3.96268952]
[1768794334947,115.99439456,133.87,133.83,3.90944618]
[1768794335646,14.314048,133.87,133.83,3.90944618]
[1768794339634,11.31080373,133.87,133.83,3.90944618]
[1768794339835,14.314048,133.87,133.83,3.90944618]
[1768794342634,11.31080373,133.87,133.83,3.90944618]
[1768794342835,14.314048,133.87,133.83,3.90944618]
[1768794343030,7.10769206,133.86,133.83,3.90944618]
[1768794343236,3.00324427,133.85,133.83,3.90944618]
[1768794344955,11.5743813,133.87,133.83,3.90944618]
[1768794345134,3.00324427,133.86,133.83,3.90944618]
[1768794346755,10.4737362,133.86,133.83,3.90944618]
[1768794348059,4.10444779,133.85,133.82,4.12792589]
[1768794348355,7.10769206,133.85,133.82,4.12792589]
[1768794348860,7.10781569,133.85,133.82,4.12792589]
[1768794354250,3.0033679,133.85,133.82,4.12792589]
[1768794357463,3.0033679,133.83,133.81,4.20401819]
[1768794359553,14.40386166,133.84,133.81,4.20401819]
[1768794359967,10.47503633,133.84,133.81,4.20401819]
[1768794362663,3.0033679,133.85,133.82,4.20401819]
[1768794362864,6.93219323,133.85,133.82,4.20401819]
[1768794363366,6.93219323,133.84,133.82,4.20401819]
[1768794363573,6.93219323,133.83,133.81,4.20401819]
[1768794363953,3.0033679,133.83,133.81,4.20401819]
[1768794364356,6.93219323,133.84,133.81,4.20401819]
[1768794364556,6.93219323,133.84,133.81,7.47325021]
[1768794364758,3.0033679,133.84,133.82,4.20401819]
[1768794367852,6.93219323,133.84,133.82,4.20401819]
[1768794370370,3.92882533,133.84,133.82,4.20401819]
[1768794370554,6.93219323,133.84,133.82,4.20401819]
[1768794372272,3.92882533,133.84,133.82,4.20401819]
[1768794372653,14.40333623,133.85,133.82,4.20401819]
[1768794378079,3.92882533,133.84,133.82,4.20401819]
[1768794385783,14.30584366,133.85,133.82,4.20401819]
[1768794395885,3.83133276,133.84,133.82,4.20401819]
[1768794397678,14.30584366,133.85,133.82,4.20401819]
[1768794410900,14.3059788,133.85,133.82,4.20401819]
[1768794413403,11.30247576,133.85,133.82,4.20401819]
[1768794417704,14.3059788,133.85,133.82,4.20401819]
[1768794420710,4.20263328,133.86,133.82,7.47269677]
[1768794420906,7.20613632,133.86,133.83,4.05166359]
[1768794421704,14.67690533,133.86,133.83,4.05166359]
[1768794424406,4.20263328,133.85,133.83,4.05166359]
[1768794424607,97.44606242,133.89,133.83,4.05166359]
[1768794424796,4.20927734,133.98,133.87,3.00350304]
[1768794424797,12.51509189,133.92,133.87,3.00350304]
[1768794424984,12.51509189,133.92,133.86,3.00350304]
[1768794425190,12.51509189,133.92,133.86,15.51859493]
[1768794425397,3.00350304,133.91,133.86,12.51509189]
[1768794425595,3.00350304,133.91,133.85,3.00350304]
[1768794425793,3.00350304,133.91,133.85,19.36350304]
[1768794426290,10.47139816,133.91,133.86,7.47049155]
[1768794426687,7.46789512,133.91,133.87,3.00350304]
[1768794427590,7.46789512,133.91,133.87,10.47340414]
[1768794427786,14.67348897,133.92,133.87,10.47340414]
[1768794428311,4.20263328,133.91,133.87,7.4699011]
[1768794428496,4.20263328,133.91,133.87,10.47340414]
[1768794432005,4.20263328,133.91,133.85,26.14867388]
[1768794432206,4.20263328,133.91,133.87,3.00350304]
[1768794433302,4.20263328,133.91,133.86,3.00350304]
[1768794433621,4.20263328,133.9,133.86,3.00350304]
[1768794434610,4.20263328,133.9,133.87,3.00350304]
[1768794435199,4.20263328,133.9,133.87,10.47332085]
[1768794437121,4.20263328,133.89,133.86,10.47396772]
[1768794438011,4.20263328,133.89,133.86,3.00350304]
[1768794439530,4.20263328,133.9,133.86,3.00350304]
[1768794440423,4.20263328,133.9,133.86,10.47368435]
[1768794443022,4.20263328,133.9,133.86,3.00350304]
[1768794444922,4.20263328,133.9,133.86,10.47355126]
[1768794445223,23.82727771,133.92,133.87,3.00350304]
[1768794445224,3.81467349,133.91,133.87,3.00350304]
[1768794445416,3.81467349,133.91,133.86,26.14627711]
[1768794445599,3.81467349,133.91,133.87,3.00350304]
[1768794446323,3.81467349,133.92,133.88,3.00350304]
[1768794446525,3.81467349,133.93,133.89,3.00350304]
[1768794446708,3.81467349,133.93,133.88,11.68360603]
[1768794446912,3.81467349,133.93,133.89,3.00350304]
[1768794447228,3.81467349,133.93,133.9,7.46825989]
[1768794448934,20.17467349,133.94,133.9,7.46825989]
[1768794449127,20.17467349,133.94,133.9,10.47176293]
[1768794449329,16.36,133.94,133.9,10.47176293]
[1768794450028,20.17467349,133.94,133.9,10.47176293]
[1768794452333,3.81467349,133.93,133.9,7.46825989]
[1768794453838,3.81467349,133.93,133.89,10.47232072]
[1768794455118,3.81467349,133.92,133.89,7.46881768]
[1768794455634,14.28478284,133.93,133.89,7.46881768]
[1768794456417,3.81467349,133.93,133.89,10.47232072]
[1768794459442,4.00230287,133.91,133.88,7.46920776]
[1768794459653,4.00230287,133.91,133.87,10.47320374]
[1768794460146,4.00230287,133.91,133.87,7.4697007]
[1768794460332,4.00230287,133.91,133.88,7.469313]
[1768794462644,4.00230287,133.92,133.88,10.47281604]
[1768794462944,4.00230287,133.92,133.88,7.469313]
[1768794463241,4.00230287,133.92,133.88,10.47281604]
[1768794467925,4.00230287,133.92,133.88,3.00350304]
[1768794469450,7.46659963,133.93,133.89,10.47232072]
[1768794469660,19.36350304,133.94,133.9,3.74619362]
[1768794470158,26.82955457,133.94,133.9,3.74619362]
[1768794470453,26.82955457,133.94,133.89,14.21380397]
[1768794470824,26.82955457,133.94,133.89,14.2095451]
[1768794471046,26.8252957,133.94,133.89,14.2095451]
[1768794471552,4.00230287,133.93,133.89,14.2095451]
[1768794474436,4.00230287,133.93,133.9,3.71873065]
[1768794475238,3.83477517,133.92,133.89,11.18312054]
[1768794475658,3.83477517,133.92,133.89,3.71430286]
[1768794476856,11.30138346,133.93,133.9,3.70559927]
[1768794477157,3.83477517,133.93,133.9,3.70559927]
[1768794478057,14.30076121,133.93,133.9,3.70559927]
[1768794478863,3.83477517,133.93,133.9,3.70559927]
[1768794480465,3.77477516,133.93,133.9,3.70559927]
[1768794482262,22.01436941,133.94,133.9,3.70559927]
[1768794482467,14.54811091,133.94,133.91,3.95706041]
[1768794483045,26.82439899,133.96,133.91,3.95706041]
[1768794484156,2.99924417,133.95,133.91,11.42467718]
[1768794484347,3.83477517,133.94,133.91,11.42467718]
[1768794485454,3.83477517,133.95,133.92,3.95706041]
[1768794485761,26.82439899,133.96,133.93,3.95706041]
[1768794485762,20.19477517,133.96,133.93,3.95706041]
[1768794485955,3.83477517,133.97,133.93,3.95706041]
[1768794486567,3.83477517,133.97,133.94,3.95706041]
[1768794488240,3.83477517,133.96,133.93,11.42331057]
[1768794488546,3.83477517,133.95,133.92,11.42413675]
[1768794495071,3.83477517,133.97,133.93,3.95706041]
[1768794496482,3.83477517,133.97,133.93,11.42354598]
[1768794496665,3.83477517,133.97,133.93,14.42279015]
[1768794497053,3.83477517,133.96,133.93,14.42279015]
[1768794497971,3.83477517,133.96,133.93,3.95706041]
[1768794498676,3.83477517,133.96,133.93,11.42363619]
[1768794502976,3.83477517,133.96,133.92,10.4661593]
[1768794503172,3.99893474,133.95,133.91,3.75003435]
[1768794504162,3.99893474,133.95,133.91,6.74927852]
[1768794504561,3.99893474,133.95,133.92,3.75003435]
[1768794505180,11.46448888,133.95,133.92,3.75003435]
[1768794505393,3.99893474,133.94,133.91,3.75003435]
[1768794505881,3.99893474,133.94,133.91,11.21773318]
[1768794506075,3.99893474,133.94,133.92,3.75003435]
[1768794507885,3.99893474,133.94,133.91,3.75003435]
[1768794508994,3.99893474,133.93,133.89,3.75003435]
[1768794509381,3.99893474,133.91,133.88,3.75003435]
[1768794509586,3.87893469,133.91,133.88,3.75003435]
[1768794510410,3.87893469,133.91,133.88,11.21935939]
[1768794515594,3.87893469,133.91,133.88,14.21860356]
[1768794515796,3.99893474,133.92,133.9,3.75003435]
[1768794515976,3.99893474,133.92,133.89,6.74927852]
[1768794516885,3.99893474,133.92,133.89,3.75003435]
[1768794525006,3.99893474,133.92,133.89,11.21883914]
[1768794525485,2.00713003,133.92,133.89,11.21883914]
[1768794529203,2.00713003,133.92,133.89,3.75003435]
[1768794535306,1.94713004,133.92,133.89,3.75003435]
[1768794535905,26.82651164,133.93,133.9,3.86394433]
[1768794536411,23.82677077,133.93,133.9,3.86394433]
[1768794536907,7.46677077,133.93,133.9,3.86394433]
[1768794537316,11.08761649,133.93,133.9,3.86394433]
[1768794538789,14.08735736,133.93,133.9,3.86394433]
[1768794539613,3.62084572,133.92,133.89,3.86394433]
[1768794542908,3.62084572,133.92,133.89,11.33266643]
[1768794548326,6.62058659,133.92,133.89,11.33266643]
[1768794550304,6.62058659,133.92,133.89,3.86394433]
[1768794552704,3.62084572,133.92,133.89,3.86394433]
[1768794553020,6.62058659,133.92,133.89,3.86394433]
[1768794553519,3.62084572,133.91,133.89,3.86394433]
[1768794553917,2.99974087,133.9,133.87,3.86394433]
[1768794554217,2.99974087,133.89,133.87,3.86394433]
[1768794554423,42.49509115,133.92,133.87,3.86394433]
[1768794554621,2.99974087,133.89,133.87,3.86394433]
[1768794557525,5.61947654,133.89,133.86,7.47033221]
[1768794558028,5.61947654,133.89,133.86,11.33427654]
[1768794560020,2.99974087,133.89,133.87,3.86394433]
[1768794560226,3.56084574,133.88,133.87,3.86394433]
[1768794562220,3.50084575,133.88,133.87,3.86394433]
[1768794562425,3.50084575,133.88,133.87,11.33387784]
[1768794562618,0.0048031,133.88,133.87,11.26643121]
[1768794573332,0.0048031,133.88,133.87,3.7964977]
[1768794575138,5.59678911,133.9,133.87,3.7964977]
[1768794575744,2.59050648,133.91,133.88,3.7964977]
[1768794575925,5.58898373,133.92,133.88,3.7964977]
[1768794576122,2.58924286,133.92,133.88,3.7964977]
[1768794576322,26.41596848,133.93,133.88,3.7964977]
[1768794576534,2.58924286,133.92,133.88,3.7964977]
[1768794576837,2.58924286,133.92,133.88,6.79623857]
[1768794577037,2.58924286,133.92,133.89,3.7964977]
[1768794577630,2.58924286,133.92,133.89,11.26519604]
[1768794578027,10.05259716,133.95,133.9,3.7964977]
[1768794578226,2.58553843,133.94,133.91,3.7964977]
[1768794578423,5.5852793,133.93,133.9,3.57664469]
[1768794579940,5.5852793,133.93,133.9,11.04482212]
[1768794580120,2.58553843,133.93,133.9,11.04482212]
[1768794580315,5.5852793,133.93,133.9,11.04482212]
[1768794580624,5.58288005,133.93,133.9,11.04482212]
[1768794581830,2.58196019,133.92,133.89,11.04546237]
[1768794582730,2.58196019,133.92,133.9,3.57664469]
[1768794583740,2.99974087,133.93,133.9,3.57664469]
[1768794585336,10.4664019,133.93,133.9,3.57664469]
[1768794586232,10.46598293,133.94,133.9,3.57664469]
[1768794589553,7.46624206,133.94,133.9,3.57664469]
[1768794589757,10.46598293,133.94,133.9,3.57664469]
[1768794590955,2.99943326,133.93,133.89,3.57664469]
[1768794591854,2.99943326,133.93,133.89,11.0454154]
[1768794593358,2.99943326,133.93,133.9,3.80017222]
[1768794595655,10.46609159,133.93,133.9,3.80017222]
[1768794595863,2.99943326,133.92,133.89,3.80017222]
[1768794596965,10.46661673,133.92,133.89,3.80017222]
[1768794597464,10.46661673,133.92,133.88,3.80017222]
[1768794597672,2.99943326,133.91,133.88,3.80017222]
[1768794600261,2.93943326,133.91,133.88,3.80017222]
[1768794601544,10.40728278,133.91,133.87,11.26991811]
[1768794601749,10.40728278,133.91,133.87,3.80017222]
[1768794602548,7.46784952,133.91,133.87,11.27006702]
[1768794602747,10.46728278,133.91,133.88,3.80017222]
[1768794604170,26.13374282,133.93,133.88,3.80017222]
[1768794604472,2.99943326,133.91,133.87,3.80017222]
[1768794605646,2.99943326,133.92,133.87,3.80017222]
[1768794606465,2.99943326,133.9,133.87,3.80017222]
[1768794606656,2.99943326,133.89,133.87,3.80017222]
[1768794606852,2.99943326,133.89,133.86,3.80017222]
[1768794607171,2.93943326,133.89,133.86,3.80017222]
[1768794607671,2.99943326,133.89,133.86,3.80017222]
[1768794612868,2.93943323,133.89,133.86,3.80017222]
[1768794614070,2.87943322,133.89,133.86,3.80017222]
[1768794615373,18.66892009,133.92,133.86,7.4704737]
[1768794615557,10.46602028,133.93,133.88,3.80017222]
[1768794615767,2.99943326,133.92,133.88,3.80017222]
[1768794617777,19.35943326,133.92,133.89,3.80017222]
[1768794619552,16.36,133.92,133.89,3.80017222]
[1768794621364,16.36,133.92,133.89,6.79960548]
[1768794621565,16.36,133.92,133.9,3.80017222]
[1768794624380,119.11077343,133.94,133.9,3.80017222]
[1768794624381,107.91172653,133.94,133.9,3.80017222]
[1768794624562,7.46623085,133.94,133.91,3.59494934]
[1768794624758,16.36,133.93,133.91,3.59494934]
[1768794628063,16.36,133.93,133.91,6.5943826]
[1768794628860,7.46623085,133.94,133.91,6.5943826]
[1768794629068,16.36,133.93,133.91,6.5943826]
[1768794629270,7.46547219,133.95,133.91,6.5943826]
[1768794629663,10.46490545,133.95,133.91,6.5943826]
[1768794629874,16.36,133.94,133.91,6.5943826]
[1768794630184,16.36,133.93,133.91,6.5943826]
[1768794630369,7.46613413,133.94,133.91,6.5943826]
[1768794630557,16.36,133.93,133.91,6.5943826]
[1768794630962,7.46613413,133.94,133.91,6.5943826]
[1768794631170,16.36,133.93,133.91,6.5943826]
[1768794631462,16.36,133.92,133.91,6.5943826]
[1768794632385,7.46547219,133.95,133.91,6.5943826]
[1768794632572,16.36,133.94,133.91,6.5943826]
[1768794632762,7.46547219,133.95,133.91,6.5943826]
[1768794632962,16.36,133.94,133.91,3.59494934]
[1768794633162,16.36,133.94,133.91,6.5943826]
[1768794633585,7.46547219,133.95,133.91,6.5943826]
[1768794633785,7.46609235,133.94,133.91,6.5943826]
[1768794633964,16.36,133.93,133.91,6.5943826]
[1768794634286,16.36,133.92,133.91,6.5943826]
[1768794634483,7.46557124,133.95,133.91,14.06195809]
[1768794634683,7.46502756,133.96,133.92,2.99943326]
[1768794634873,16.36,133.95,133.93,3.59494934]
[1768794635076,16.36,133.95,133.93,3.56494935]
[1768794636384,16.36,133.94,133.93,3.56494935]
[1768794638000,97.44606242,133.97,133.94,3.59494934]
[1768794638175,16.36,133.96,133.94,3.59494934]
[1768794638801,16.36,133.96,133.9,7.46806589]
[1768794639083,19.35943326,133.96,133.92,3.77138277]
[1768794639664,26.12535649,133.97,133.92,3.77138277]
[1768794639867,19.35943326,133.96,133.92,3.77138277]
[1768794640784,7.46547219,133.95,133.92,3.77138277]
[1768794645098,16.36,133.94,133.92,3.77138277]
[1768794647496,16.36,133.93,133.92,3.77138277]
[1768794654404,7.46547219,133.95,133.92,3.77138277]
[1768794654584,16.36,133.94,133.92,3.77138277]
[1768794655801,7.46547219,133.95,133.92,3.77138277]
[1768794656008,16.36,133.94,133.92,3.77138277]
[1768794658409,7.46547219,133.95,133.92,3.77138277]
[1768794658721,16.36,133.94,133.92,3.77138277]
[1768794660197,16.36,133.94,133.91,3.58867989]
[1768794663600,16.36,133.93,133.91,3.58867989]
[1768794663802,16.36,133.92,133.91,3.58867989]
[1768794664306,16.36,133.92,133.9,3.58867989]
[1768794667697,10.46515685,133.93,133.9,3.58867989]
[1768794667895,18.66368047,133.95,133.86,3.58867989]
[1768794667896,10.46620316,133.91,133.86,3.58867989]
[1768794668091,2.99850098,133.87,133.85,3.58867989]
[1768794668411,16.29999978,133.86,133.85,3.58867989]
[1768794670309,16.29999978,133.86,133.84,3.58867989]
[1768794673316,16.23999977,133.86,133.84,3.58867989]
[1768794674818,16.17999976,133.86,133.84,3.58867989]
[1768794675629,16.11999966,133.86,133.84,3.58867989]
[1768794676003,7.46902728,133.89,133.85,3.58867989]
[1768794676211,16.36,133.88,133.85,3.58867989]
[1768794683234,23.82950247,133.88,133.85,3.58867989]
[1768794683431,26.82800345,133.88,133.85,3.58867989]
[1768794687232,7.46770218,133.91,133.86,3.6228565]
[1768794687431,2.99850098,133.89,133.86,3.6228565]
[1768794688416,2.99850098,133.88,133.85,3.6228565]
[1768794688721,19.35850098,133.87,133.85,3.6228565]
[1768794689640,23.83000892,133.87,133.84,3.6228565]
[1768794689844,2.99850098,133.86,133.84,3.6228565]
[1768794690331,26.8285099,133.87,133.84,3.6228565]
[1768794691640,10.46902078,133.86,133.84,3.6228565]
[1768794693815,16.36,133.85,133.84,3.6228565]
[1768794694017,16.3,133.85,133.84,3.6228565]
[1768794696139,16.23999999,133.85,133.84,3.6228565]
[1768794699125,3.54920161,133.84,133.81,7.47307244]
[1768794699329,2.99850098,133.83,133.8,3.50185117]
[1768794699529,16.36,133.82,133.8,3.50185117]
[1768794699734,16.29999995,133.82,133.8,3.50185117]
[1768794700553,2.99850098,133.83,133.81,3.50185117]
[1768794700748,19.35850098,133.83,133.81,3.50185117]
[1768794701131,16.36,133.83,133.81,10.97504765]
[1768794701544,22.84694146,133.84,133.81,10.97504765]
[1768794702448,30.31855064,133.84,133.81,3.50185117]
[1768794702635,19.84844048,133.84,133.81,3.50185117]
[1768794702950,22.84694146,133.84,133.81,3.50185117]
[1768794703249,22.73693595,133.84,133.81,3.50185117]
[1768794703954,22.67693591,133.84,133.81,3.50185117]
[1768794706352,19.67843493,133.84,133.81,10.97506512]
[1768794706550,22.67693591,133.84,133.81,10.97506512]
[1768794706855,19.67843493,133.84,133.81,10.97506512]
[1768794707944,19.67843493,133.84,133.81,3.50185117]
[1768794708139,22.66788922,133.84,133.81,3.50185117]
[1768794709360,22.66788922,133.84,133.81,10.9751284]
[1768794710255,19.66938824,133.84,133.81,10.9751284]
[1768794711058,3.30380569,133.85,133.82,3.50185117]
[1768794711362,19.66380569,133.85,133.82,3.50185117]
[1768794715466,30.13806877,133.85,133.82,3.50185117]
[1768794715665,6.29801576,133.84,133.81,3.62291618]
[1768794716358,3.29494995,133.84,133.81,3.62291618]
[1768794716564,6.29801576,133.84,133.81,3.62291618]
[1768794721355,3.28497667,133.83,133.8,11.09671979]
[1768794721555,3.28497667,133.83,133.81,3.62291618]
[1768794721771,13.75970507,133.84,133.81,3.62291618]
[1768794722368,6.28644644,133.83,133.8,7.47380361]
[1768794722552,3.28338063,133.82,133.8,7.47380361]
[1768794722752,3.00306581,133.83,133.8,11.09671979]
[1768794723150,3.00306581,133.83,133.81,3.62291618]
[1768794723353,3.28180293,133.84,133.81,3.62291618]
[1768794723657,6.28486874,133.84,133.81,3.62291618]
[1768794723964,10.75149962,133.85,133.81,3.62291618]
[1768794724157,30.11456543,133.85,133.81,3.62291618]
[1768794725471,27.11149962,133.85,133.81,3.62291618]
[1768794725672,30.11456543,133.85,133.81,3.62291618]
[1768794727068,27.11149962,133.85,133.81,3.62291618]
[1768794727263,30.11456543,133.85,133.81,3.62291618]
[1768794729775,19.63271007,133.85,133.82,3.62291618]
[1768794734156,16.36,133.85,133.82,3.62291618]
[1768794736179,3.26286843,133.87,133.82,3.00306581]
[1768794736478,6.26593424,133.87,133.83,3.62291618]
[1768794736985,3.26286843,133.87,133.83,3.62291618]
[1768794737688,3.26286843,133.87,133.84,3.62291618]
[1768794739179,10.73286087,133.87,133.84,3.62291618]
[1768794741888,7.46999244,133.87,133.84,3.62291618]
[1768794742892,10.72254592,133.87,133.84,3.62291618]
[1768794743884,7.46962973,133.88,133.84,7.47149351]
[1768794744086,23.82962973,133.88,133.85,3.4868939]
[1768794744285,27.08095959,133.88,133.85,3.4868939]
[1768794748198,10.72095959,133.88,133.85,3.4868939]
[1768794748579,10.71544379,133.89,133.85,10.95782312]
[1768794748784,27.07544379,133.89,133.86,3.4868939]
[1768794748986,27.07544379,133.89,133.86,3.45689391]
[1768794760613,16.36,133.89,133.86,3.45689391]
[1768794760901,27.09111732,133.9,133.87,3.50651799]
[1768794762396,19.62261351,133.9,133.87,3.50651799]
[1768794762593,10.72855273,133.91,133.88,3.50651799]
[1768794762794,27.08804881,133.92,133.88,3.50651799]
[1768794764990,3.26065372,133.92,133.89,3.50651799]
[1768794765291,3.25779764,133.93,133.9,3.50651799]
[1768794765506,3.25779764,133.93,133.9,3.476518]
[1768794767117,10.72447521,133.93,133.9,3.476518]
[1768794773408,13.72754102,133.93,133.9,3.476518]
[1768794776906,13.72419594,133.93,133.9,3.476518]
[1768794779403,3.27499914,133.91,133.88,3.51887723]
[1768794779716,13.74197684,133.92,133.88,3.51887723]
[1768794780098,10.74225611,133.92,133.88,3.51887723]
[1768794780312,13.74197684,133.92,133.89,3.51887723]
[1768794780719,10.74225611,133.92,133.89,3.51887723]
[1768794784303,3.27121674,133.91,133.88,3.51887723]
[1768794784618,3.27121674,133.9,133.87,3.51887723]
[1768794789435,23.82813303,133.91,133.88,3.51887723]
[1768794789436,27.09577965,133.91,133.88,3.51887723]
[1768794789729,3.26764662,133.9,133.88,3.51887723]
[1768794791225,3.26627533,133.92,133.89,3.51887723]
[1768794792035,3.26627533,133.92,133.89,6.51859796]
[1768794792612,27.09227042,133.93,133.9,3.51887723]
[1768794794429,27.09094583,133.93,133.9,3.51887723]
[1768794794637,3.26427688,133.92,133.89,3.51887723]
[1768794801041,3.26427688,133.92,133.89,10.98762997]
[1768794802330,27.0859432,133.93,133.9,3.51887723]
[1768794802537,30.08566393,133.93,133.9,3.51887723]
[1768794805443,3.25694106,133.94,133.91,3.5106287]
[1768794806043,22.61609515,133.95,133.91,3.5106287]
[1768794806440,10.72230999,133.95,133.92,3.5106287]
[1768794806631,13.75097331,133.97,133.92,2.99972073]
[1768794806832,27.11125258,133.97,133.91,7.46754375]
[1768794807038,27.11125258,133.97,133.92,2.99972073]
[1768794807242,30.11097331,133.97,133.92,2.99972073]
[1768794807643,30.11097331,133.97,133.92,10.46634547]
[1768794807844,30.11097331,133.97,133.92,7.46662474]
[1768794808026,30.11097331,133.97,133.92,10.46634547]
[1768794808527,30.11097331,133.97,133.93,3.5106287]
[1768794809230,27.11125258,133.97,133.93,3.5106287]
[1768794817065,27.11125258,133.97,133.94,3.5106287]
[1768794826870,30.11097331,133.97,133.94,3.5106287]
[1768794827973,27.11125258,133.97,133.94,3.5106287]
[1768794828154,30.11097331,133.97,133.94,3.5106287]
[1768794829071,27.11125258,133.97,133.94,3.5106287]
[1768794834174,7.56397785,133.98,133.94,3.5106287]
[1768794834376,0.1,133.98,133.97,3.70492002]
[1768794834871,0.1,133.98,133.96,3.70492002]
[1768794836187,3.37184767,133.98,133.95,3.70492002]
[1768794836379,6.3715684,133.98,133.95,3.70492002]
[1768794837371,6.3715684,133.98,133.93,14.17114985]
[1768794837372,3.27147773,133.97,133.93,14.17114985]
[1768794837583,3.27147773,133.97,133.94,3.70492002]
[1768794838462,10.73586335,133.97,133.94,3.70492002]
[1768794841088,3.27003994,133.96,133.93,3.70492002]
[1768794841493,6.26757983,133.95,133.91,3.70492002]
[1768794841684,3.27003994,133.96,133.93,3.70492002]
[1768794842159,10.73502313,133.96,133.93,3.70492002]
[1768794851490,13.73256302,133.96,133.93,3.70492002]
[1768794852087,30.08851153,133.97,133.93,3.70492002]
[1768794852783,0.1,133.98,133.95,3.70492002]
[1768794852985,16.46,133.98,133.95,3.70492002]
[1768794853584,0.1,133.98,133.95,3.70492002]
[1768794856297,0.1,133.98,133.95,11.17033304]
[1768794856501,0.1,133.98,133.96,3.70492002]
[1768794859988,3.26404862,133.96,133.93,3.70492002]